{"text_format":"1","workbook":"xlsx","n_sheets":3,"sheets":["Inschrijvingen","Kosten","Voorblad"],"not_rendered":{"charts":0,"images":1,"macros":1,"external_links":0,"defined_names":0,"comments":0,"pivot_tables":0},"unopened":[],"bounds":{"document_bytes":16777216,"sheet_cells":100000,"rows_first":2000,"rows_last":500,"rows_between":2000,"halvings":0,"cell_chars":16384,"cell_head_chars":4096},"cells_cut":0,"cells_raw":0,"read":"whole","date_system":"1900"}

{"sheet":"Inschrijvingen","index":0,"n_rows":150,"n_cols":27,"rows_kept":150,"cut":false,"hidden":true,"merged":[[1,22,1,23],[3,0,3,4],[1,11,1,12],[1,19,1,21],[1,13,1,14],[1,15,1,16],[1,0,1,4],[2,0,2,4],[1,5,1,7],[1,8,1,10]]}
[null,null,null,null,"Bubbletoernooi 2016",null,null,null,null,null,null,"Opgaveformulier",null,null,null,null,null,null,null,null,null,null,null,null,null,null,7]
["Vereniging",null,null,null,null,"Leiding aanwezig op",null,null,"Zwemmer aanwezig op",null,null,"Overnachting op",null,"Ontbijtbuffet",null,"Lunch",null,"Warme maaltijd","mobielnr leiding","totaal door u te betalen ",null,null,{"$f":"SUM(Z6:Z21)","v":0}]
[null,null,null,null,null,"vr","za","zo","vr","za","zo","vr","za","za","zo","za","zo","za",null,"zaterdag","zondag","Totaal ontbijt","Totaal lunch","warme maaltijd",null,"Totaal"]
["Aantallen",null,null,null,null,{"$f":"SUM(F6:F110)","v":0},{"$f":"SUM(G6:G110)","v":0},0,0,0,0,0,0,0,0,0,0,0]
[null,"Voornaam","tussen voegsel","Achternaam","Volledige naam"]
[null,null,null,null,null,null,null,null,null,null,null,null,null,null,null,null,null,null,null,{"$f":"IF(J6,Kosten!$B$1,0)","v":0},{"$f":"IF(K6,Kosten!$B$1,0)","v":0},{"$f":"SUM(N6:O6)*Kosten!$B$2","v":0},{"$f":"SUM(P6:Q6)*Kosten!$B$3","v":0},{"$f":"IF(R6=1,Kosten!$B$4,0)","v":0},null,{"$f":"SUM(T6:Y6)","v":0}]
[null,null,null,null,null,null,null,null,null,null,null,null,null,null,null,null,null,null,null,{"$f":"IF(J7,Kosten!$B$1,0)","v":0},{"$f":"IF(K7,Kosten!$B$1,0)","v":0},{"$f":"SUM(N7:O7)*Kosten!$B$2","v":0},{"$f":"SUM(P7:Q7)*Kosten!$B$3","v":0},{"$f":"IF(R7=1,Kosten!$B$4,0)","v":0},null,0]
[null,null,null,null,null,null,null,null,null,null,null,null,null,null,null,null,null,null,null,{"$f":"IF(J8,Kosten!$B$1,0)","v":0},{"$f":"IF(K8,Kosten!$B$1,0)","v":0},{"$f":"SUM(N8:O8)*Kosten!$B$2","v":0},{"$f":"SUM(P8:Q8)*Kosten!$B$3","v":0},{"$f":"IF(R8=1,Kosten!$B$4,0)","v":0},null,0]
[null,null,null,null,null,null,null,null,null,null,null,null,null,null,null,null,null,null,null,{"$f":"IF(J9,Kosten!$B$1,0)","v":0},{"$f":"IF(K9,Kosten!$B$1,0)","v":0},{"$f":"SUM(N9:O9)*Kosten!$B$2","v":0},{"$f":"SUM(P9:Q9)*Kosten!$B$3","v":0},{"$f":"IF(R9=1,Kosten!$B$4,0)","v":0},null,0]
[null,null,null,null,null,null,null,null,null,null,null,null,null,null,null,null,null,null,null,{"$f":"IF(J10,Kosten!$B$1,0)","v":0},{"$f":"IF(K10,Kosten!$B$1,0)","v":0},{"$f":"SUM(N10:O10)*Kosten!$B$2","v":0},{"$f":"SUM(P10:Q10)*Kosten!$B$3","v":0},{"$f":"IF(R10=1,Kosten!$B$4,0)","v":0},null,{"$f":"SUM(T10:Y10)","v":0}]
[null,null,null,null,null,null,null,null,null,null,null,null,null,null,null,null,null,null,null,{"$f":"IF(J11,Kosten!$B$1,0)","v":0},{"$f":"IF(K11,Kosten!$B$1,0)","v":0},{"$f":"SUM(N11:O11)*Kosten!$B$2","v":0},{"$f":"SUM(P11:Q11)*Kosten!$B$3","v":0},{"$f":"IF(R11=1,Kosten!$B$4,0)","v":0},null,0]
[null,null,null,null,null,null,null,null,null,null,null,null,null,null,null,null,null,null,null,{"$f":"IF(J12,Kosten!$B$1,0)","v":0},{"$f":"IF(K12,Kosten!$B$1,0)","v":0},{"$f":"SUM(N12:O12)*Kosten!$B$2","v":0},{"$f":"SUM(P12:Q12)*Kosten!$B$3","v":0},{"$f":"IF(R12=1,Kosten!$B$4,0)","v":0},null,0]
[null,null,null,null,null,null,null,null,null,null,null,null,null,null,null,null,null,null,null,{"$f":"IF(J13,Kosten!$B$1,0)","v":0},{"$f":"IF(K13,Kosten!$B$1,0)","v":0},{"$f":"SUM(N13:O13)*Kosten!$B$2","v":0},{"$f":"SUM(P13:Q13)*Kosten!$B$3","v":0},{"$f":"IF(R13=1,Kosten!$B$4,0)","v":0},null,0]
[null,null,null,null,null,null,null,null,null,null,null,null,null,null,null,null,null,null,null,{"$f":"IF(J14,Kosten!$B$1,0)","v":0},{"$f":"IF(K14,Kosten!$B$1,0)","v":0},{"$f":"SUM(N14:O14)*Kosten!$B$2","v":0},{"$f":"SUM(P14:Q14)*Kosten!$B$3","v":0},{"$f":"IF(R14=1,Kosten!$B$4,0)","v":0},null,0]
[null,null,null,null,null,null,null,null,null,null,null,null,null,null,null,null,null,null,null,{"$f":"IF(J15,Kosten!$B$1,0)","v":0},{"$f":"IF(K15,Kosten!$B$1,0)","v":0},{"$f":"SUM(N15:O15)*Kosten!$B$2","v":0},{"$f":"SUM(P15:Q15)*Kosten!$B$3","v":0},{"$f":"IF(R15=1,Kosten!$B$4,0)","v":0},null,0]
[null,null,null,null,null,null,null,null,null,null,null,null,null,null,null,null,null,null,null,{"$f":"IF(J16,Kosten!$B$1,0)","v":0},{"$f":"IF(K16,Kosten!$B$1,0)","v":0},{"$f":"SUM(N16:O16)*Kosten!$B$2","v":0},{"$f":"SUM(P16:Q16)*Kosten!$B$3","v":0},{"$f":"IF(R16=1,Kosten!$B$4,0)","v":0},null,0]
[null,null,null,null,null,null,null,null,null,null,null,null,null,null,null,null,null,null,null,{"$f":"IF(J17,Kosten!$B$1,0)","v":0},{"$f":"IF(K17,Kosten!$B$1,0)","v":0},{"$f":"SUM(N17:O17)*Kosten!$B$2","v":0},{"$f":"SUM(P17:Q17)*Kosten!$B$3","v":0},{"$f":"IF(R17=1,Kosten!$B$4,0)","v":0},null,0]
[null,null,null,null,null,null,null,null,null,null,null,null,null,null,null,null,null,null,null,{"$f":"IF(J18,Kosten!$B$1,0)","v":0},{"$f":"IF(K18,Kosten!$B$1,0)","v":0},{"$f":"SUM(N18:O18)*Kosten!$B$2","v":0},{"$f":"SUM(P18:Q18)*Kosten!$B$3","v":0},{"$f":"IF(R18=1,Kosten!$B$4,0)","v":0},null,{"$f":"SUM(T18:Y18)","v":0}]
[null,null,null,null,null,null,null,null,null,null,null,null,null,null,null,null,null,null,null,{"$f":"IF(J19,Kosten!$B$1,0)","v":0},{"$f":"IF(K19,Kosten!$B$1,0)","v":0},{"$f":"SUM(N19:O19)*Kosten!$B$2","v":0},{"$f":"SUM(P19:Q19)*Kosten!$B$3","v":0},{"$f":"IF(R19=1,Kosten!$B$4,0)","v":0},null,0]
[null,null,null,null,null,null,null,null,null,null,null,null,null,null,null,null,null,null,null,{"$f":"IF(J20,Kosten!$B$1,0)","v":0},{"$f":"IF(K20,Kosten!$B$1,0)","v":0},{"$f":"SUM(N20:O20)*Kosten!$B$2","v":0},{"$f":"SUM(P20:Q20)*Kosten!$B$3","v":0},{"$f":"IF(R20=1,Kosten!$B$4,0)","v":0},null,0]
[null,null,null,null,null,null,null,null,null,null,null,null,null,null,null,null,null,null,null,{"$f":"IF(J21,Kosten!$B$1,0)","v":0},{"$f":"IF(K21,Kosten!$B$1,0)","v":0},{"$f":"SUM(N21:O21)*Kosten!$B$2","v":0},{"$f":"SUM(P21:Q21)*Kosten!$B$3","v":0},{"$f":"IF(R21=1,Kosten!$B$4,0)","v":0},null,0]
[null,null,null,null,null,null,null,null,null,null,null,null,null,null,null,null,null,null,null,{"$f":"IF(J22,Kosten!$B$1,0)","v":0},{"$f":"IF(K22,Kosten!$B$1,0)","v":0},{"$f":"SUM(N22:O22)*Kosten!$B$2","v":0},{"$f":"SUM(P22:Q22)*Kosten!$B$3","v":0},{"$f":"IF(R22=1,Kosten!$B$4,0)","v":0},null,0]
[null,null,null,null,null,null,null,null,null,null,null,null,null,null,null,null,null,null,null,{"$f":"IF(J23,Kosten!$B$1,0)","v":0},{"$f":"IF(K23,Kosten!$B$1,0)","v":0},{"$f":"SUM(N23:O23)*Kosten!$B$2","v":0},{"$f":"SUM(P23:Q23)*Kosten!$B$3","v":0},{"$f":"IF(R23=1,Kosten!$B$4,0)","v":0},null,0]
[null,null,null,null,null,null,null,null,null,null,null,null,null,null,null,null,null,null,null,{"$f":"IF(J24,Kosten!$B$1,0)","v":0},{"$f":"IF(K24,Kosten!$B$1,0)","v":0},{"$f":"SUM(N24:O24)*Kosten!$B$2","v":0},{"$f":"SUM(P24:Q24)*Kosten!$B$3","v":0},{"$f":"IF(R24=1,Kosten!$B$4,0)","v":0},null,0]
[null,null,null,null,null,null,null,null,null,null,null,null,null,null,null,null,null,null,null,{"$f":"IF(J25,Kosten!$B$1,0)","v":0},{"$f":"IF(K25,Kosten!$B$1,0)","v":0},{"$f":"SUM(N25:O25)*Kosten!$B$2","v":0},{"$f":"SUM(P25:Q25)*Kosten!$B$3","v":0},{"$f":"IF(R25=1,Kosten!$B$4,0)","v":0},null,0]
[null,null,null,null,null,null,null,null,null,null,null,null,null,null,null,null,null,null,null,{"$f":"IF(J26,Kosten!$B$1,0)","v":0},{"$f":"IF(K26,Kosten!$B$1,0)","v":0},{"$f":"SUM(N26:O26)*Kosten!$B$2","v":0},{"$f":"SUM(P26:Q26)*Kosten!$B$3","v":0},{"$f":"IF(R26=1,Kosten!$B$4,0)","v":0},null,0]
[null,null,null,null,null,null,null,null,null,null,null,null,null,null,null,null,null,null,null,{"$f":"IF(J27,Kosten!$B$1,0)","v":0},{"$f":"IF(K27,Kosten!$B$1,0)","v":0},{"$f":"SUM(N27:O27)*Kosten!$B$2","v":0},{"$f":"SUM(P27:Q27)*Kosten!$B$3","v":0},{"$f":"IF(R27=1,Kosten!$B$4,0)","v":0},null,0]
[null,null,null,null,null,null,null,null,null,null,null,null,null,null,null,null,null,null,null,{"$f":"IF(J28,Kosten!$B$1,0)","v":0},{"$f":"IF(K28,Kosten!$B$1,0)","v":0},{"$f":"SUM(N28:O28)*Kosten!$B$2","v":0},{"$f":"SUM(P28:Q28)*Kosten!$B$3","v":0},{"$f":"IF(R28=1,Kosten!$B$4,0)","v":0},null,0]
[null,null,null,null,null,null,null,null,null,null,null,null,null,null,null,null,null,null,null,{"$f":"IF(J29,Kosten!$B$1,0)","v":0},{"$f":"IF(K29,Kosten!$B$1,0)","v":0},{"$f":"SUM(N29:O29)*Kosten!$B$2","v":0},{"$f":"SUM(P29:Q29)*Kosten!$B$3","v":0},{"$f":"IF(R29=1,Kosten!$B$4,0)","v":0},null,0]
[null,null,null,null,null,null,null,null,null,null,null,null,null,null,null,null,null,null,null,{"$f":"IF(J30,Kosten!$B$1,0)","v":0},{"$f":"IF(K30,Kosten!$B$1,0)","v":0},{"$f":"SUM(N30:O30)*Kosten!$B$2","v":0},{"$f":"SUM(P30:Q30)*Kosten!$B$3","v":0},{"$f":"IF(R30=1,Kosten!$B$4,0)","v":0},null,0]
[null,null,null,null,null,null,null,null,null,null,null,null,null,null,null,null,null,null,null,{"$f":"IF(J31,Kosten!$B$1,0)","v":0},{"$f":"IF(K31,Kosten!$B$1,0)","v":0},{"$f":"SUM(N31:O31)*Kosten!$B$2","v":0},{"$f":"SUM(P31:Q31)*Kosten!$B$3","v":0},{"$f":"IF(R31=1,Kosten!$B$4,0)","v":0},null,0]
[null,null,null,null,null,null,null,null,null,null,null,null,null,null,null,null,null,null,null,{"$f":"IF(J32,Kosten!$B$1,0)","v":0},{"$f":"IF(K32,Kosten!$B$1,0)","v":0},{"$f":"SUM(N32:O32)*Kosten!$B$2","v":0},{"$f":"SUM(P32:Q32)*Kosten!$B$3","v":0},{"$f":"IF(R32=1,Kosten!$B$4,0)","v":0},null,0]
[null,null,null,null,null,null,null,null,null,null,null,null,null,null,null,null,null,null,null,{"$f":"IF(J33,Kosten!$B$1,0)","v":0},{"$f":"IF(K33,Kosten!$B$1,0)","v":0},{"$f":"SUM(N33:O33)*Kosten!$B$2","v":0},{"$f":"SUM(P33:Q33)*Kosten!$B$3","v":0},{"$f":"IF(R33=1,Kosten!$B$4,0)","v":0},null,0]
[null,null,null,null,null,null,null,null,null,null,null,null,null,null,null,null,null,null,null,{"$f":"IF(J34,Kosten!$B$1,0)","v":0},{"$f":"IF(K34,Kosten!$B$1,0)","v":0},{"$f":"SUM(N34:O34)*Kosten!$B$2","v":0},{"$f":"SUM(P34:Q34)*Kosten!$B$3","v":0},{"$f":"IF(R34=1,Kosten!$B$4,0)","v":0},null,0]
[null,null,null,null,null,null,null,null,null,null,null,null,null,null,null,null,null,null,null,{"$f":"IF(J35,Kosten!$B$1,0)","v":0},{"$f":"IF(K35,Kosten!$B$1,0)","v":0},{"$f":"SUM(N35:O35)*Kosten!$B$2","v":0},{"$f":"SUM(P35:Q35)*Kosten!$B$3","v":0},{"$f":"IF(R35=1,Kosten!$B$4,0)","v":0},null,0]
[null,null,null,null,null,null,null,null,null,null,null,null,null,null,null,null,null,null,null,{"$f":"IF(J36,Kosten!$B$1,0)","v":0},{"$f":"IF(K36,Kosten!$B$1,0)","v":0},{"$f":"SUM(N36:O36)*Kosten!$B$2","v":0},{"$f":"SUM(P36:Q36)*Kosten!$B$3","v":0},{"$f":"IF(R36=1,Kosten!$B$4,0)","v":0},null,0]
[null,null,null,null,null,null,null,null,null,null,null,null,null,null,null,null,null,null,null,{"$f":"IF(J37,Kosten!$B$1,0)","v":0},{"$f":"IF(K37,Kosten!$B$1,0)","v":0},{"$f":"SUM(N37:O37)*Kosten!$B$2","v":0},{"$f":"SUM(P37:Q37)*Kosten!$B$3","v":0},{"$f":"IF(R37=1,Kosten!$B$4,0)","v":0},null,0]
[null,null,null,null,null,null,null,null,null,null,null,null,null,null,null,null,null,null,null,{"$f":"IF(J38,Kosten!$B$1,0)","v":0},{"$f":"IF(K38,Kosten!$B$1,0)","v":0},{"$f":"SUM(N38:O38)*Kosten!$B$2","v":0},{"$f":"SUM(P38:Q38)*Kosten!$B$3","v":0},{"$f":"IF(R38=1,Kosten!$B$4,0)","v":0},null,0]
[null,null,null,null,null,null,null,null,null,null,null,null,null,null,null,null,null,null,null,{"$f":"IF(J39,Kosten!$B$1,0)","v":0},{"$f":"IF(K39,Kosten!$B$1,0)","v":0},{"$f":"SUM(N39:O39)*Kosten!$B$2","v":0},{"$f":"SUM(P39:Q39)*Kosten!$B$3","v":0},{"$f":"IF(R39=1,Kosten!$B$4,0)","v":0},null,0]
[null,null,null,null,null,null,null,null,null,null,null,null,null,null,null,null,null,null,null,{"$f":"IF(J40,Kosten!$B$1,0)","v":0},{"$f":"IF(K40,Kosten!$B$1,0)","v":0},{"$f":"SUM(N40:O40)*Kosten!$B$2","v":0},{"$f":"SUM(P40:Q40)*Kosten!$B$3","v":0},{"$f":"IF(R40=1,Kosten!$B$4,0)","v":0},null,0]
[null,null,null,null,null,null,null,null,null,null,null,null,null,null,null,null,null,null,null,{"$f":"IF(J41,Kosten!$B$1,0)","v":0},{"$f":"IF(K41,Kosten!$B$1,0)","v":0},{"$f":"SUM(N41:O41)*Kosten!$B$2","v":0},{"$f":"SUM(P41:Q41)*Kosten!$B$3","v":0},{"$f":"IF(R41=1,Kosten!$B$4,0)","v":0},null,0]
[null,null,null,null,null,null,null,null,null,null,null,null,null,null,null,null,null,null,null,{"$f":"IF(J42,Kosten!$B$1,0)","v":0},{"$f":"IF(K42,Kosten!$B$1,0)","v":0},{"$f":"SUM(N42:O42)*Kosten!$B$2","v":0},{"$f":"SUM(P42:Q42)*Kosten!$B$3","v":0},{"$f":"IF(R42=1,Kosten!$B$4,0)","v":0},null,0]
[null,null,null,null,null,null,null,null,null,null,null,null,null,null,null,null,null,null,null,{"$f":"IF(J43,Kosten!$B$1,0)","v":0},{"$f":"IF(K43,Kosten!$B$1,0)","v":0},{"$f":"SUM(N43:O43)*Kosten!$B$2","v":0},{"$f":"SUM(P43:Q43)*Kosten!$B$3","v":0},{"$f":"IF(R43=1,Kosten!$B$4,0)","v":0},null,0]
[null,null,null,null,null,null,null,null,null,null,null,null,null,null,null,null,null,null,null,{"$f":"IF(J44,Kosten!$B$1,0)","v":0},{"$f":"IF(K44,Kosten!$B$1,0)","v":0},{"$f":"SUM(N44:O44)*Kosten!$B$2","v":0},{"$f":"SUM(P44:Q44)*Kosten!$B$3","v":0},{"$f":"IF(R44=1,Kosten!$B$4,0)","v":0},null,0]
[null,null,null,null,null,null,null,null,null,null,null,null,null,null,null,null,null,null,null,{"$f":"IF(J45,Kosten!$B$1,0)","v":0},{"$f":"IF(K45,Kosten!$B$1,0)","v":0},{"$f":"SUM(N45:O45)*Kosten!$B$2","v":0},{"$f":"SUM(P45:Q45)*Kosten!$B$3","v":0},{"$f":"IF(R45=1,Kosten!$B$4,0)","v":0},null,0]
[null,null,null,null,null,null,null,null,null,null,null,null,null,null,null,null,null,null,null,{"$f":"IF(J46,Kosten!$B$1,0)","v":0},{"$f":"IF(K46,Kosten!$B$1,0)","v":0},{"$f":"SUM(N46:O46)*Kosten!$B$2","v":0},{"$f":"SUM(P46:Q46)*Kosten!$B$3","v":0},{"$f":"IF(R46=1,Kosten!$B$4,0)","v":0},null,0]
[null,null,null,null,null,null,null,null,null,null,null,null,null,null,null,null,null,null,null,{"$f":"IF(J47,Kosten!$B$1,0)","v":0},{"$f":"IF(K47,Kosten!$B$1,0)","v":0},{"$f":"SUM(N47:O47)*Kosten!$B$2","v":0},{"$f":"SUM(P47:Q47)*Kosten!$B$3","v":0},{"$f":"IF(R47=1,Kosten!$B$4,0)","v":0},null,0]
[null,null,null,null,null,null,null,null,null,null,null,null,null,null,null,null,null,null,null,{"$f":"IF(J48,Kosten!$B$1,0)","v":0},{"$f":"IF(K48,Kosten!$B$1,0)","v":0},{"$f":"SUM(N48:O48)*Kosten!$B$2","v":0},{"$f":"SUM(P48:Q48)*Kosten!$B$3","v":0},{"$f":"IF(R48=1,Kosten!$B$4,0)","v":0},null,0]
[null,null,null,null,null,null,null,null,null,null,null,null,null,null,null,null,null,null,null,{"$f":"IF(J49,Kosten!$B$1,0)","v":0},{"$f":"IF(K49,Kosten!$B$1,0)","v":0},{"$f":"SUM(N49:O49)*Kosten!$B$2","v":0},{"$f":"SUM(P49:Q49)*Kosten!$B$3","v":0},{"$f":"IF(R49=1,Kosten!$B$4,0)","v":0},null,0]
[null,null,null,null,null,null,null,null,null,null,null,null,null,null,null,null,null,null,null,{"$f":"IF(J50,Kosten!$B$1,0)","v":0},{"$f":"IF(K50,Kosten!$B$1,0)","v":0},{"$f":"SUM(N50:O50)*Kosten!$B$2","v":0},{"$f":"SUM(P50:Q50)*Kosten!$B$3","v":0},{"$f":"IF(R50=1,Kosten!$B$4,0)","v":0},null,0]
[null,null,null,null,null,null,null,null,null,null,null,null,null,null,null,null,null,null,null,{"$f":"IF(J51,Kosten!$B$1,0)","v":0},{"$f":"IF(K51,Kosten!$B$1,0)","v":0},{"$f":"SUM(N51:O51)*Kosten!$B$2","v":0},{"$f":"SUM(P51:Q51)*Kosten!$B$3","v":0},{"$f":"IF(R51=1,Kosten!$B$4,0)","v":0},null,0]
[null,null,null,null,null,null,null,null,null,null,null,null,null,null,null,null,null,null,null,{"$f":"IF(J52,Kosten!$B$1,0)","v":0},{"$f":"IF(K52,Kosten!$B$1,0)","v":0},{"$f":"SUM(N52:O52)*Kosten!$B$2","v":0},{"$f":"SUM(P52:Q52)*Kosten!$B$3","v":0},{"$f":"IF(R52=1,Kosten!$B$4,0)","v":0},null,0]
[null,null,null,null,null,null,null,null,null,null,null,null,null,null,null,null,null,null,null,{"$f":"IF(J53,Kosten!$B$1,0)","v":0},{"$f":"IF(K53,Kosten!$B$1,0)","v":0},{"$f":"SUM(N53:O53)*Kosten!$B$2","v":0},{"$f":"SUM(P53:Q53)*Kosten!$B$3","v":0},{"$f":"IF(R53=1,Kosten!$B$4,0)","v":0},null,0]
[null,null,null,null,null,null,null,null,null,null,null,null,null,null,null,null,null,null,null,{"$f":"IF(J54,Kosten!$B$1,0)","v":0},{"$f":"IF(K54,Kosten!$B$1,0)","v":0},{"$f":"SUM(N54:O54)*Kosten!$B$2","v":0},{"$f":"SUM(P54:Q54)*Kosten!$B$3","v":0},{"$f":"IF(R54=1,Kosten!$B$4,0)","v":0},null,0]
[null,null,null,null,null,null,null,null,null,null,null,null,null,null,null,null,null,null,null,{"$f":"IF(J55,Kosten!$B$1,0)","v":0},{"$f":"IF(K55,Kosten!$B$1,0)","v":0},{"$f":"SUM(N55:O55)*Kosten!$B$2","v":0},{"$f":"SUM(P55:Q55)*Kosten!$B$3","v":0},{"$f":"IF(R55=1,Kosten!$B$4,0)","v":0},null,0]
[null,null,null,null,null,null,null,null,null,null,null,null,null,null,null,null,null,null,null,{"$f":"IF(J56,Kosten!$B$1,0)","v":0},{"$f":"IF(K56,Kosten!$B$1,0)","v":0},{"$f":"SUM(N56:O56)*Kosten!$B$2","v":0},{"$f":"SUM(P56:Q56)*Kosten!$B$3","v":0},{"$f":"IF(R56=1,Kosten!$B$4,0)","v":0},null,0]
[null,null,null,null,null,null,null,null,null,null,null,null,null,null,null,null,null,null,null,{"$f":"IF(J57,Kosten!$B$1,0)","v":0},{"$f":"IF(K57,Kosten!$B$1,0)","v":0},{"$f":"SUM(N57:O57)*Kosten!$B$2","v":0},{"$f":"SUM(P57:Q57)*Kosten!$B$3","v":0},{"$f":"IF(R57=1,Kosten!$B$4,0)","v":0},null,0]
[null,null,null,null,null,null,null,null,null,null,null,null,null,null,null,null,null,null,null,{"$f":"IF(J58,Kosten!$B$1,0)","v":0},{"$f":"IF(K58,Kosten!$B$1,0)","v":0},{"$f":"SUM(N58:O58)*Kosten!$B$2","v":0},{"$f":"SUM(P58:Q58)*Kosten!$B$3","v":0},{"$f":"IF(R58=1,Kosten!$B$4,0)","v":0},null,0]
[null,null,null,null,null,null,null,null,null,null,null,null,null,null,null,null,null,null,null,{"$f":"IF(J59,Kosten!$B$1,0)","v":0},{"$f":"IF(K59,Kosten!$B$1,0)","v":0},{"$f":"SUM(N59:O59)*Kosten!$B$2","v":0},{"$f":"SUM(P59:Q59)*Kosten!$B$3","v":0},{"$f":"IF(R59=1,Kosten!$B$4,0)","v":0},null,0]
[null,null,null,null,null,null,null,null,null,null,null,null,null,null,null,null,null,null,null,{"$f":"IF(J60,Kosten!$B$1,0)","v":0},{"$f":"IF(K60,Kosten!$B$1,0)","v":0},{"$f":"SUM(N60:O60)*Kosten!$B$2","v":0},{"$f":"SUM(P60:Q60)*Kosten!$B$3","v":0},{"$f":"IF(R60=1,Kosten!$B$4,0)","v":0},null,0]
[null,null,null,null,null,null,null,null,null,null,null,null,null,null,null,null,null,null,null,{"$f":"IF(J61,Kosten!$B$1,0)","v":0},{"$f":"IF(K61,Kosten!$B$1,0)","v":0},{"$f":"SUM(N61:O61)*Kosten!$B$2","v":0},{"$f":"SUM(P61:Q61)*Kosten!$B$3","v":0},{"$f":"IF(R61=1,Kosten!$B$4,0)","v":0},null,0]
[null,null,null,null,null,null,null,null,null,null,null,null,null,null,null,null,null,null,null,{"$f":"IF(J62,Kosten!$B$1,0)","v":0},{"$f":"IF(K62,Kosten!$B$1,0)","v":0},{"$f":"SUM(N62:O62)*Kosten!$B$2","v":0},{"$f":"SUM(P62:Q62)*Kosten!$B$3","v":0},{"$f":"IF(R62=1,Kosten!$B$4,0)","v":0},null,0]
[null,null,null,null,null,null,null,null,null,null,null,null,null,null,null,null,null,null,null,{"$f":"IF(J63,Kosten!$B$1,0)","v":0},{"$f":"IF(K63,Kosten!$B$1,0)","v":0},{"$f":"SUM(N63:O63)*Kosten!$B$2","v":0},{"$f":"SUM(P63:Q63)*Kosten!$B$3","v":0},{"$f":"IF(R63=1,Kosten!$B$4,0)","v":0},null,0]
[null,null,null,null,null,null,null,null,null,null,null,null,null,null,null,null,null,null,null,{"$f":"IF(J64,Kosten!$B$1,0)","v":0},{"$f":"IF(K64,Kosten!$B$1,0)","v":0},{"$f":"SUM(N64:O64)*Kosten!$B$2","v":0},{"$f":"SUM(P64:Q64)*Kosten!$B$3","v":0},{"$f":"IF(R64=1,Kosten!$B$4,0)","v":0},null,0]
[null,null,null,null,null,null,null,null,null,null,null,null,null,null,null,null,null,null,null,{"$f":"IF(J65,Kosten!$B$1,0)","v":0},{"$f":"IF(K65,Kosten!$B$1,0)","v":0},{"$f":"SUM(N65:O65)*Kosten!$B$2","v":0},{"$f":"SUM(P65:Q65)*Kosten!$B$3","v":0},{"$f":"IF(R65=1,Kosten!$B$4,0)","v":0},null,0]
[null,null,null,null,null,null,null,null,null,null,null,null,null,null,null,null,null,null,null,{"$f":"IF(J66,Kosten!$B$1,0)","v":0},{"$f":"IF(K66,Kosten!$B$1,0)","v":0},{"$f":"SUM(N66:O66)*Kosten!$B$2","v":0},{"$f":"SUM(P66:Q66)*Kosten!$B$3","v":0},{"$f":"IF(R66=1,Kosten!$B$4,0)","v":0},null,0]
[null,null,null,null,null,null,null,null,null,null,null,null,null,null,null,null,null,null,null,{"$f":"IF(J67,Kosten!$B$1,0)","v":0},{"$f":"IF(K67,Kosten!$B$1,0)","v":0},{"$f":"SUM(N67:O67)*Kosten!$B$2","v":0},{"$f":"SUM(P67:Q67)*Kosten!$B$3","v":0},{"$f":"IF(R67=1,Kosten!$B$4,0)","v":0},null,0]
[null,null,null,null,null,null,null,null,null,null,null,null,null,null,null,null,null,null,null,{"$f":"IF(J68,Kosten!$B$1,0)","v":0},{"$f":"IF(K68,Kosten!$B$1,0)","v":0},{"$f":"SUM(N68:O68)*Kosten!$B$2","v":0},{"$f":"SUM(P68:Q68)*Kosten!$B$3","v":0},{"$f":"IF(R68=1,Kosten!$B$4,0)","v":0},null,0]
[null,null,null,null,null,null,null,null,null,null,null,null,null,null,null,null,null,null,null,{"$f":"IF(J69,Kosten!$B$1,0)","v":0},{"$f":"IF(K69,Kosten!$B$1,0)","v":0},{"$f":"SUM(N69:O69)*Kosten!$B$2","v":0},{"$f":"SUM(P69:Q69)*Kosten!$B$3","v":0},{"$f":"IF(R69=1,Kosten!$B$4,0)","v":0},null,0]
[null,null,null,null,null,null,null,null,null,null,null,null,null,null,null,null,null,null,null,{"$f":"IF(J70,Kosten!$B$1,0)","v":0},{"$f":"IF(K70,Kosten!$B$1,0)","v":0},{"$f":"SUM(N70:O70)*Kosten!$B$2","v":0},{"$f":"SUM(P70:Q70)*Kosten!$B$3","v":0},{"$f":"IF(R70=1,Kosten!$B$4,0)","v":0},null,0]
[null,null,null,null,null,null,null,null,null,null,null,null,null,null,null,null,null,null,null,{"$f":"IF(J71,Kosten!$B$1,0)","v":0},{"$f":"IF(K71,Kosten!$B$1,0)","v":0},{"$f":"SUM(N71:O71)*Kosten!$B$2","v":0},{"$f":"SUM(P71:Q71)*Kosten!$B$3","v":0},{"$f":"IF(R71=1,Kosten!$B$4,0)","v":0},null,0]
[null,null,null,null,null,null,null,null,null,null,null,null,null,null,null,null,null,null,null,{"$f":"IF(J72,Kosten!$B$1,0)","v":0},{"$f":"IF(K72,Kosten!$B$1,0)","v":0},{"$f":"SUM(N72:O72)*Kosten!$B$2","v":0},{"$f":"SUM(P72:Q72)*Kosten!$B$3","v":0},{"$f":"IF(R72=1,Kosten!$B$4,0)","v":0},null,0]
[null,null,null,null,null,null,null,null,null,null,null,null,null,null,null,null,null,null,null,{"$f":"IF(J73,Kosten!$B$1,0)","v":0},{"$f":"IF(K73,Kosten!$B$1,0)","v":0},{"$f":"SUM(N73:O73)*Kosten!$B$2","v":0},{"$f":"SUM(P73:Q73)*Kosten!$B$3","v":0},{"$f":"IF(R73=1,Kosten!$B$4,0)","v":0},null,0]
[null,null,null,null,null,null,null,null,null,null,null,null,null,null,null,null,null,null,null,{"$f":"IF(J74,Kosten!$B$1,0)","v":0},{"$f":"IF(K74,Kosten!$B$1,0)","v":0},{"$f":"SUM(N74:O74)*Kosten!$B$2","v":0},{"$f":"SUM(P74:Q74)*Kosten!$B$3","v":0},{"$f":"IF(R74=1,Kosten!$B$4,0)","v":0},null,0]
[null,null,null,null,null,null,null,null,null,null,null,null,null,null,null,null,null,null,null,{"$f":"IF(J75,Kosten!$B$1,0)","v":0},{"$f":"IF(K75,Kosten!$B$1,0)","v":0},{"$f":"SUM(N75:O75)*Kosten!$B$2","v":0},{"$f":"SUM(P75:Q75)*Kosten!$B$3","v":0},{"$f":"IF(R75=1,Kosten!$B$4,0)","v":0},null,0]
[null,null,null,null,null,null,null,null,null,null,null,null,null,null,null,null,null,null,null,{"$f":"IF(J76,Kosten!$B$1,0)","v":0},{"$f":"IF(K76,Kosten!$B$1,0)","v":0},{"$f":"SUM(N76:O76)*Kosten!$B$2","v":0},{"$f":"SUM(P76:Q76)*Kosten!$B$3","v":0},{"$f":"IF(R76=1,Kosten!$B$4,0)","v":0},null,0]
[null,null,null,null,null,null,null,null,null,null,null,null,null,null,null,null,null,null,null,{"$f":"IF(J77,Kosten!$B$1,0)","v":0},{"$f":"IF(K77,Kosten!$B$1,0)","v":0},{"$f":"SUM(N77:O77)*Kosten!$B$2","v":0},{"$f":"SUM(P77:Q77)*Kosten!$B$3","v":0},{"$f":"IF(R77=1,Kosten!$B$4,0)","v":0},null,0]
[null,null,null,null,null,null,null,null,null,null,null,null,null,null,null,null,null,null,null,{"$f":"IF(J78,Kosten!$B$1,0)","v":0},{"$f":"IF(K78,Kosten!$B$1,0)","v":0},{"$f":"SUM(N78:O78)*Kosten!$B$2","v":0},{"$f":"SUM(P78:Q78)*Kosten!$B$3","v":0},{"$f":"IF(R78=1,Kosten!$B$4,0)","v":0},null,0]
[null,null,null,null,null,null,null,null,null,null,null,null,null,null,null,null,null,null,null,{"$f":"IF(J79,Kosten!$B$1,0)","v":0},{"$f":"IF(K79,Kosten!$B$1,0)","v":0},{"$f":"SUM(N79:O79)*Kosten!$B$2","v":0},{"$f":"SUM(P79:Q79)*Kosten!$B$3","v":0},{"$f":"IF(R79=1,Kosten!$B$4,0)","v":0},null,0]
[null,null,null,null,null,null,null,null,null,null,null,null,null,null,null,null,null,null,null,{"$f":"IF(J80,Kosten!$B$1,0)","v":0},{"$f":"IF(K80,Kosten!$B$1,0)","v":0},{"$f":"SUM(N80:O80)*Kosten!$B$2","v":0},{"$f":"SUM(P80:Q80)*Kosten!$B$3","v":0},{"$f":"IF(R80=1,Kosten!$B$4,0)","v":0},null,0]
[null,null,null,null,null,null,null,null,null,null,null,null,null,null,null,null,null,null,null,{"$f":"IF(J81,Kosten!$B$1,0)","v":0},{"$f":"IF(K81,Kosten!$B$1,0)","v":0},{"$f":"SUM(N81:O81)*Kosten!$B$2","v":0},{"$f":"SUM(P81:Q81)*Kosten!$B$3","v":0},{"$f":"IF(R81=1,Kosten!$B$4,0)","v":0},null,0]
[null,null,null,null,null,null,null,null,null,null,null,null,null,null,null,null,null,null,null,{"$f":"IF(J82,Kosten!$B$1,0)","v":0},{"$f":"IF(K82,Kosten!$B$1,0)","v":0},{"$f":"SUM(N82:O82)*Kosten!$B$2","v":0},{"$f":"SUM(P82:Q82)*Kosten!$B$3","v":0},{"$f":"IF(R82=1,Kosten!$B$4,0)","v":0},null,{"$f":"SUM(T82:Y82)","v":0}]
[null,null,null,null,null,null,null,null,null,null,null,null,null,null,null,null,null,null,null,{"$f":"IF(J83,Kosten!$B$1,0)","v":0},{"$f":"IF(K83,Kosten!$B$1,0)","v":0},{"$f":"SUM(N83:O83)*Kosten!$B$2","v":0},{"$f":"SUM(P83:Q83)*Kosten!$B$3","v":0},{"$f":"IF(R83=1,Kosten!$B$4,0)","v":0},null,0]
[null,null,null,null,null,null,null,null,null,null,null,null,null,null,null,null,null,null,null,{"$f":"IF(J84,Kosten!$B$1,0)","v":0},{"$f":"IF(K84,Kosten!$B$1,0)","v":0},{"$f":"SUM(N84:O84)*Kosten!$B$2","v":0},{"$f":"SUM(P84:Q84)*Kosten!$B$3","v":0},{"$f":"IF(R84=1,Kosten!$B$4,0)","v":0},null,0]
[null,null,null,null,null,null,null,null,null,null,null,null,null,null,null,null,null,null,null,{"$f":"IF(J85,Kosten!$B$1,0)","v":0},{"$f":"IF(K85,Kosten!$B$1,0)","v":0},{"$f":"SUM(N85:O85)*Kosten!$B$2","v":0},{"$f":"SUM(P85:Q85)*Kosten!$B$3","v":0},{"$f":"IF(R85=1,Kosten!$B$4,0)","v":0},null,0]
[null,null,null,null,null,null,null,null,null,null,null,null,null,null,null,null,null,null,null,{"$f":"IF(J86,Kosten!$B$1,0)","v":0},{"$f":"IF(K86,Kosten!$B$1,0)","v":0},{"$f":"SUM(N86:O86)*Kosten!$B$2","v":0},{"$f":"SUM(P86:Q86)*Kosten!$B$3","v":0},{"$f":"IF(R86=1,Kosten!$B$4,0)","v":0},null,0]
[null,null,null,null,null,null,null,null,null,null,null,null,null,null,null,null,null,null,null,{"$f":"IF(J87,Kosten!$B$1,0)","v":0},{"$f":"IF(K87,Kosten!$B$1,0)","v":0},{"$f":"SUM(N87:O87)*Kosten!$B$2","v":0},{"$f":"SUM(P87:Q87)*Kosten!$B$3","v":0},{"$f":"IF(R87=1,Kosten!$B$4,0)","v":0},null,0]
[null,null,null,null,null,null,null,null,null,null,null,null,null,null,null,null,null,null,null,{"$f":"IF(J88,Kosten!$B$1,0)","v":0},{"$f":"IF(K88,Kosten!$B$1,0)","v":0},{"$f":"SUM(N88:O88)*Kosten!$B$2","v":0},{"$f":"SUM(P88:Q88)*Kosten!$B$3","v":0},{"$f":"IF(R88=1,Kosten!$B$4,0)","v":0},null,0]
[null,null,null,null,null,null,null,null,null,null,null,null,null,null,null,null,null,null,null,{"$f":"IF(J89,Kosten!$B$1,0)","v":0},{"$f":"IF(K89,Kosten!$B$1,0)","v":0},{"$f":"SUM(N89:O89)*Kosten!$B$2","v":0},{"$f":"SUM(P89:Q89)*Kosten!$B$3","v":0},{"$f":"IF(R89=1,Kosten!$B$4,0)","v":0},null,0]
[null,null,null,null,null,null,null,null,null,null,null,null,null,null,null,null,null,null,null,{"$f":"IF(J90,Kosten!$B$1,0)","v":0},{"$f":"IF(K90,Kosten!$B$1,0)","v":0},{"$f":"SUM(N90:O90)*Kosten!$B$2","v":0},{"$f":"SUM(P90:Q90)*Kosten!$B$3","v":0},{"$f":"IF(R90=1,Kosten!$B$4,0)","v":0},null,0]
[null,null,null,null,null,null,null,null,null,null,null,null,null,null,null,null,null,null,null,{"$f":"IF(J91,Kosten!$B$1,0)","v":0},{"$f":"IF(K91,Kosten!$B$1,0)","v":0},{"$f":"SUM(N91:O91)*Kosten!$B$2","v":0},{"$f":"SUM(P91:Q91)*Kosten!$B$3","v":0},{"$f":"IF(R91=1,Kosten!$B$4,0)","v":0},null,0]
[null,null,null,null,null,null,null,null,null,null,null,null,null,null,null,null,null,null,null,{"$f":"IF(J92,Kosten!$B$1,0)","v":0},{"$f":"IF(K92,Kosten!$B$1,0)","v":0},{"$f":"SUM(N92:O92)*Kosten!$B$2","v":0},{"$f":"SUM(P92:Q92)*Kosten!$B$3","v":0},{"$f":"IF(R92=1,Kosten!$B$4,0)","v":0},null,0]
[null,null,null,null,null,null,null,null,null,null,null,null,null,null,null,null,null,null,null,{"$f":"IF(J93,Kosten!$B$1,0)","v":0},{"$f":"IF(K93,Kosten!$B$1,0)","v":0},{"$f":"SUM(N93:O93)*Kosten!$B$2","v":0},{"$f":"SUM(P93:Q93)*Kosten!$B$3","v":0},{"$f":"IF(R93=1,Kosten!$B$4,0)","v":0},null,0]
[null,null,null,null,null,null,null,null,null,null,null,null,null,null,null,null,null,null,null,{"$f":"IF(J94,Kosten!$B$1,0)","v":0},{"$f":"IF(K94,Kosten!$B$1,0)","v":0},{"$f":"SUM(N94:O94)*Kosten!$B$2","v":0},{"$f":"SUM(P94:Q94)*Kosten!$B$3","v":0},{"$f":"IF(R94=1,Kosten!$B$4,0)","v":0},null,0]
[null,null,null,null,null,null,null,null,null,null,null,null,null,null,null,null,null,null,null,{"$f":"IF(J95,Kosten!$B$1,0)","v":0},{"$f":"IF(K95,Kosten!$B$1,0)","v":0},{"$f":"SUM(N95:O95)*Kosten!$B$2","v":0},{"$f":"SUM(P95:Q95)*Kosten!$B$3","v":0},{"$f":"IF(R95=1,Kosten!$B$4,0)","v":0},null,0]
[null,null,null,null,null,null,null,null,null,null,null,null,null,null,null,null,null,null,null,{"$f":"IF(J96,Kosten!$B$1,0)","v":0},{"$f":"IF(K96,Kosten!$B$1,0)","v":0},{"$f":"SUM(N96:O96)*Kosten!$B$2","v":0},{"$f":"SUM(P96:Q96)*Kosten!$B$3","v":0},{"$f":"IF(R96=1,Kosten!$B$4,0)","v":0},null,0]
[null,null,null,null,null,null,null,null,null,null,null,null,null,null,null,null,null,null,null,{"$f":"IF(J97,Kosten!$B$1,0)","v":0},{"$f":"IF(K97,Kosten!$B$1,0)","v":0},{"$f":"SUM(N97:O97)*Kosten!$B$2","v":0},{"$f":"SUM(P97:Q97)*Kosten!$B$3","v":0},{"$f":"IF(R97=1,Kosten!$B$4,0)","v":0},null,0]
[null,null,null,null,null,null,null,null,null,null,null,null,null,null,null,null,null,null,null,{"$f":"IF(J98,Kosten!$B$1,0)","v":0},{"$f":"IF(K98,Kosten!$B$1,0)","v":0},{"$f":"SUM(N98:O98)*Kosten!$B$2","v":0},{"$f":"SUM(P98:Q98)*Kosten!$B$3","v":0},{"$f":"IF(R98=1,Kosten!$B$4,0)","v":0},null,0]
[null,null,null,null,null,null,null,null,null,null,null,null,null,null,null,null,null,null,null,{"$f":"IF(J99,Kosten!$B$1,0)","v":0},{"$f":"IF(K99,Kosten!$B$1,0)","v":0},{"$f":"SUM(N99:O99)*Kosten!$B$2","v":0},{"$f":"SUM(P99:Q99)*Kosten!$B$3","v":0},{"$f":"IF(R99=1,Kosten!$B$4,0)","v":0},null,0]
[null,null,null,null,null,null,null,null,null,null,null,null,null,null,null,null,null,null,null,{"$f":"IF(J100,Kosten!$B$1,0)","v":0},{"$f":"IF(K100,Kosten!$B$1,0)","v":0},{"$f":"SUM(N100:O100)*Kosten!$B$2","v":0},{"$f":"SUM(P100:Q100)*Kosten!$B$3","v":0},{"$f":"IF(R100=1,Kosten!$B$4,0)","v":0},null,0]
[null,null,null,null,null,null,null,null,null,null,null,null,null,null,null,null,null,null,null,{"$f":"IF(J101,Kosten!$B$1,0)","v":0},{"$f":"IF(K101,Kosten!$B$1,0)","v":0},{"$f":"SUM(N101:O101)*Kosten!$B$2","v":0},{"$f":"SUM(P101:Q101)*Kosten!$B$3","v":0},{"$f":"IF(R101=1,Kosten!$B$4,0)","v":0},null,0]
[null,null,null,null,null,null,null,null,null,null,null,null,null,null,null,null,null,null,null,{"$f":"IF(J102,Kosten!$B$1,0)","v":0},{"$f":"IF(K102,Kosten!$B$1,0)","v":0},{"$f":"SUM(N102:O102)*Kosten!$B$2","v":0},{"$f":"SUM(P102:Q102)*Kosten!$B$3","v":0},{"$f":"IF(R102=1,Kosten!$B$4,0)","v":0},null,0]
[null,null,null,null,null,null,null,null,null,null,null,null,null,null,null,null,null,null,null,{"$f":"IF(J103,Kosten!$B$1,0)","v":0},{"$f":"IF(K103,Kosten!$B$1,0)","v":0},{"$f":"SUM(N103:O103)*Kosten!$B$2","v":0},{"$f":"SUM(P103:Q103)*Kosten!$B$3","v":0},{"$f":"IF(R103=1,Kosten!$B$4,0)","v":0},null,0]
[null,null,null,null,null,null,null,null,null,null,null,null,null,null,null,null,null,null,null,{"$f":"IF(J104,Kosten!$B$1,0)","v":0},{"$f":"IF(K104,Kosten!$B$1,0)","v":0},{"$f":"SUM(N104:O104)*Kosten!$B$2","v":0},{"$f":"SUM(P104:Q104)*Kosten!$B$3","v":0},{"$f":"IF(R104=1,Kosten!$B$4,0)","v":0},null,0]
[null,null,null,null,null,null,null,null,null,null,null,null,null,null,null,null,null,null,null,{"$f":"IF(J105,Kosten!$B$1,0)","v":0},{"$f":"IF(K105,Kosten!$B$1,0)","v":0},{"$f":"SUM(N105:O105)*Kosten!$B$2","v":0},{"$f":"SUM(P105:Q105)*Kosten!$B$3","v":0},{"$f":"IF(R105=1,Kosten!$B$4,0)","v":0},null,0]
[null,null,null,null,null,null,null,null,null,null,null,null,null,null,null,null,null,null,null,{"$f":"IF(J106,Kosten!$B$1,0)","v":0},{"$f":"IF(K106,Kosten!$B$1,0)","v":0},{"$f":"SUM(N106:O106)*Kosten!$B$2","v":0},{"$f":"SUM(P106:Q106)*Kosten!$B$3","v":0},{"$f":"IF(R106=1,Kosten!$B$4,0)","v":0},null,0]
[null,null,null,null,null,null,null,null,null,null,null,null,null,null,null,null,null,null,null,{"$f":"IF(J107,Kosten!$B$1,0)","v":0},{"$f":"IF(K107,Kosten!$B$1,0)","v":0},{"$f":"SUM(N107:O107)*Kosten!$B$2","v":0},{"$f":"SUM(P107:Q107)*Kosten!$B$3","v":0},{"$f":"IF(R107=1,Kosten!$B$4,0)","v":0},null,0]
[null,null,null,null,null,null,null,null,null,null,null,null,null,null,null,null,null,null,null,{"$f":"IF(J108,Kosten!$B$1,0)","v":0},{"$f":"IF(K108,Kosten!$B$1,0)","v":0},{"$f":"SUM(N108:O108)*Kosten!$B$2","v":0},{"$f":"SUM(P108:Q108)*Kosten!$B$3","v":0},{"$f":"IF(R108=1,Kosten!$B$4,0)","v":0},null,0]
[null,null,null,null,null,null,null,null,null,null,null,null,null,null,null,null,null,null,null,{"$f":"IF(J109,Kosten!$B$1,0)","v":0},{"$f":"IF(K109,Kosten!$B$1,0)","v":0},{"$f":"SUM(N109:O109)*Kosten!$B$2","v":0},{"$f":"SUM(P109:Q109)*Kosten!$B$3","v":0},{"$f":"IF(R109=1,Kosten!$B$4,0)","v":0},null,{"$f":"SUM(T109:Y109)","v":0}]
[null,null,null,null,null,null,null,null,null,null,null,null,null,null,null,null,null,null,null,{"$f":"IF(J110,Kosten!$B$1,0)","v":0},{"$f":"IF(K110,Kosten!$B$1,0)","v":0},{"$f":"SUM(N110:O110)*Kosten!$B$2","v":0},{"$f":"SUM(P110:Q110)*Kosten!$B$3","v":0},{"$f":"IF(R110=1,Kosten!$B$4,0)","v":0},null,0]
[null,null,null,null,null,null,null,null,null,null,null,null,null,null,null,null,null,null,null,{"$f":"IF(J111,Kosten!$B$1,0)","v":0},{"$f":"IF(K111,Kosten!$B$1,0)","v":0},{"$f":"SUM(N111:O111)*Kosten!$B$2","v":0},{"$f":"SUM(P111:Q111)*Kosten!$B$3","v":0},{"$f":"IF(R111=1,Kosten!$B$4,0)","v":0},null,0]
[null,null,null,null,null,null,null,null,null,null,null,null,null,null,null,null,null,null,null,{"$f":"IF(J112,Kosten!$B$1,0)","v":0},{"$f":"IF(K112,Kosten!$B$1,0)","v":0},{"$f":"SUM(N112:O112)*Kosten!$B$2","v":0},{"$f":"SUM(P112:Q112)*Kosten!$B$3","v":0},{"$f":"IF(R112=1,Kosten!$B$4,0)","v":0},null,0]
[null,null,null,null,null,null,null,null,null,null,null,null,null,null,null,null,null,null,null,{"$f":"IF(J113,Kosten!$B$1,0)","v":0},{"$f":"IF(K113,Kosten!$B$1,0)","v":0},{"$f":"SUM(N113:O113)*Kosten!$B$2","v":0},{"$f":"SUM(P113:Q113)*Kosten!$B$3","v":0},{"$f":"IF(R113=1,Kosten!$B$4,0)","v":0},null,0]
[null,null,null,null,null,null,null,null,null,null,null,null,null,null,null,null,null,null,null,{"$f":"IF(J114,Kosten!$B$1,0)","v":0},{"$f":"IF(K114,Kosten!$B$1,0)","v":0},{"$f":"SUM(N114:O114)*Kosten!$B$2","v":0},{"$f":"SUM(P114:Q114)*Kosten!$B$3","v":0},{"$f":"IF(R114=1,Kosten!$B$4,0)","v":0},null,0]
[null,null,null,null,null,null,null,null,null,null,null,null,null,null,null,null,null,null,null,{"$f":"IF(J115,Kosten!$B$1,0)","v":0},{"$f":"IF(K115,Kosten!$B$1,0)","v":0},{"$f":"SUM(N115:O115)*Kosten!$B$2","v":0},{"$f":"SUM(P115:Q115)*Kosten!$B$3","v":0},{"$f":"IF(R115=1,Kosten!$B$4,0)","v":0},null,0]
[null,null,null,null,null,null,null,null,null,null,null,null,null,null,null,null,null,null,null,{"$f":"IF(J116,Kosten!$B$1,0)","v":0},{"$f":"IF(K116,Kosten!$B$1,0)","v":0},{"$f":"SUM(N116:O116)*Kosten!$B$2","v":0},{"$f":"SUM(P116:Q116)*Kosten!$B$3","v":0},{"$f":"IF(R116=1,Kosten!$B$4,0)","v":0},null,0]
[null,null,null,null,null,null,null,null,null,null,null,null,null,null,null,null,null,null,null,{"$f":"IF(J117,Kosten!$B$1,0)","v":0},{"$f":"IF(K117,Kosten!$B$1,0)","v":0},{"$f":"SUM(N117:O117)*Kosten!$B$2","v":0},{"$f":"SUM(P117:Q117)*Kosten!$B$3","v":0},{"$f":"IF(R117=1,Kosten!$B$4,0)","v":0},null,0]
[null,null,null,null,null,null,null,null,null,null,null,null,null,null,null,null,null,null,null,{"$f":"IF(J118,Kosten!$B$1,0)","v":0},{"$f":"IF(K118,Kosten!$B$1,0)","v":0},{"$f":"SUM(N118:O118)*Kosten!$B$2","v":0},{"$f":"SUM(P118:Q118)*Kosten!$B$3","v":0},{"$f":"IF(R118=1,Kosten!$B$4,0)","v":0},null,0]
[null,null,null,null,null,null,null,null,null,null,null,null,null,null,null,null,null,null,null,{"$f":"IF(J119,Kosten!$B$1,0)","v":0},{"$f":"IF(K119,Kosten!$B$1,0)","v":0},{"$f":"SUM(N119:O119)*Kosten!$B$2","v":0},{"$f":"SUM(P119:Q119)*Kosten!$B$3","v":0},{"$f":"IF(R119=1,Kosten!$B$4,0)","v":0},null,0]
[null,null,null,null,null,null,null,null,null,null,null,null,null,null,null,null,null,null,null,{"$f":"IF(J120,Kosten!$B$1,0)","v":0},{"$f":"IF(K120,Kosten!$B$1,0)","v":0},{"$f":"SUM(N120:O120)*Kosten!$B$2","v":0},{"$f":"SUM(P120:Q120)*Kosten!$B$3","v":0},{"$f":"IF(R120=1,Kosten!$B$4,0)","v":0},null,0]
[null,null,null,null,null,null,null,null,null,null,null,null,null,null,null,null,null,null,null,{"$f":"IF(J121,Kosten!$B$1,0)","v":0},{"$f":"IF(K121,Kosten!$B$1,0)","v":0},{"$f":"SUM(N121:O121)*Kosten!$B$2","v":0},{"$f":"SUM(P121:Q121)*Kosten!$B$3","v":0},{"$f":"IF(R121=1,Kosten!$B$4,0)","v":0},null,0]
[null,null,null,null,null,null,null,null,null,null,null,null,null,null,null,null,null,null,null,{"$f":"IF(J122,Kosten!$B$1,0)","v":0},{"$f":"IF(K122,Kosten!$B$1,0)","v":0},{"$f":"SUM(N122:O122)*Kosten!$B$2","v":0},{"$f":"SUM(P122:Q122)*Kosten!$B$3","v":0},{"$f":"IF(R122=1,Kosten!$B$4,0)","v":0},null,0]
[null,null,null,null,null,null,null,null,null,null,null,null,null,null,null,null,null,null,null,{"$f":"IF(J123,Kosten!$B$1,0)","v":0},{"$f":"IF(K123,Kosten!$B$1,0)","v":0},{"$f":"SUM(N123:O123)*Kosten!$B$2","v":0},{"$f":"SUM(P123:Q123)*Kosten!$B$3","v":0},{"$f":"IF(R123=1,Kosten!$B$4,0)","v":0},null,0]
[null,null,null,null,null,null,null,null,null,null,null,null,null,null,null,null,null,null,null,{"$f":"IF(J124,Kosten!$B$1,0)","v":0},{"$f":"IF(K124,Kosten!$B$1,0)","v":0},{"$f":"SUM(N124:O124)*Kosten!$B$2","v":0},{"$f":"SUM(P124:Q124)*Kosten!$B$3","v":0},{"$f":"IF(R124=1,Kosten!$B$4,0)","v":0},null,0]
[null,null,null,null,null,null,null,null,null,null,null,null,null,null,null,null,null,null,null,{"$f":"IF(J125,Kosten!$B$1,0)","v":0},{"$f":"IF(K125,Kosten!$B$1,0)","v":0},{"$f":"SUM(N125:O125)*Kosten!$B$2","v":0},{"$f":"SUM(P125:Q125)*Kosten!$B$3","v":0},{"$f":"IF(R125=1,Kosten!$B$4,0)","v":0},null,0]
[null,null,null,null,null,null,null,null,null,null,null,null,null,null,null,null,null,null,null,{"$f":"IF(J126,Kosten!$B$1,0)","v":0},{"$f":"IF(K126,Kosten!$B$1,0)","v":0},{"$f":"SUM(N126:O126)*Kosten!$B$2","v":0},{"$f":"SUM(P126:Q126)*Kosten!$B$3","v":0},{"$f":"IF(R126=1,Kosten!$B$4,0)","v":0},null,0]
[null,null,null,null,null,null,null,null,null,null,null,null,null,null,null,null,null,null,null,{"$f":"IF(J127,Kosten!$B$1,0)","v":0},{"$f":"IF(K127,Kosten!$B$1,0)","v":0},{"$f":"SUM(N127:O127)*Kosten!$B$2","v":0},{"$f":"SUM(P127:Q127)*Kosten!$B$3","v":0},{"$f":"IF(R127=1,Kosten!$B$4,0)","v":0},null,0]
[null,null,null,null,null,null,null,null,null,null,null,null,null,null,null,null,null,null,null,{"$f":"IF(J128,Kosten!$B$1,0)","v":0},{"$f":"IF(K128,Kosten!$B$1,0)","v":0},{"$f":"SUM(N128:O128)*Kosten!$B$2","v":0},{"$f":"SUM(P128:Q128)*Kosten!$B$3","v":0},{"$f":"IF(R128=1,Kosten!$B$4,0)","v":0},null,0]
[null,null,null,null,null,null,null,null,null,null,null,null,null,null,null,null,null,null,null,{"$f":"IF(J129,Kosten!$B$1,0)","v":0},{"$f":"IF(K129,Kosten!$B$1,0)","v":0},{"$f":"SUM(N129:O129)*Kosten!$B$2","v":0},{"$f":"SUM(P129:Q129)*Kosten!$B$3","v":0},{"$f":"IF(R129=1,Kosten!$B$4,0)","v":0},null,0]
[null,null,null,null,null,null,null,null,null,null,null,null,null,null,null,null,null,null,null,{"$f":"IF(J130,Kosten!$B$1,0)","v":0},{"$f":"IF(K130,Kosten!$B$1,0)","v":0},{"$f":"SUM(N130:O130)*Kosten!$B$2","v":0},{"$f":"SUM(P130:Q130)*Kosten!$B$3","v":0},{"$f":"IF(R130=1,Kosten!$B$4,0)","v":0},null,0]
[null,null,null,null,null,null,null,null,null,null,null,null,null,null,null,null,null,null,null,{"$f":"IF(J131,Kosten!$B$1,0)","v":0},{"$f":"IF(K131,Kosten!$B$1,0)","v":0},{"$f":"SUM(N131:O131)*Kosten!$B$2","v":0},{"$f":"SUM(P131:Q131)*Kosten!$B$3","v":0},{"$f":"IF(R131=1,Kosten!$B$4,0)","v":0},null,0]
[null,null,null,null,null,null,null,null,null,null,null,null,null,null,null,null,null,null,null,{"$f":"IF(J132,Kosten!$B$1,0)","v":0},{"$f":"IF(K132,Kosten!$B$1,0)","v":0},{"$f":"SUM(N132:O132)*Kosten!$B$2","v":0},{"$f":"SUM(P132:Q132)*Kosten!$B$3","v":0},{"$f":"IF(R132=1,Kosten!$B$4,0)","v":0},null,0]
[null,null,null,null,null,null,null,null,null,null,null,null,null,null,null,null,null,null,null,{"$f":"IF(J133,Kosten!$B$1,0)","v":0},{"$f":"IF(K133,Kosten!$B$1,0)","v":0},{"$f":"SUM(N133:O133)*Kosten!$B$2","v":0},{"$f":"SUM(P133:Q133)*Kosten!$B$3","v":0},{"$f":"IF(R133=1,Kosten!$B$4,0)","v":0},null,0]
[null,null,null,null,null,null,null,null,null,null,null,null,null,null,null,null,null,null,null,{"$f":"IF(J134,Kosten!$B$1,0)","v":0},{"$f":"IF(K134,Kosten!$B$1,0)","v":0},{"$f":"SUM(N134:O134)*Kosten!$B$2","v":0},{"$f":"SUM(P134:Q134)*Kosten!$B$3","v":0},{"$f":"IF(R134=1,Kosten!$B$4,0)","v":0},null,0]
[null,null,null,null,null,null,null,null,null,null,null,null,null,null,null,null,null,null,null,{"$f":"IF(J135,Kosten!$B$1,0)","v":0},{"$f":"IF(K135,Kosten!$B$1,0)","v":0},{"$f":"SUM(N135:O135)*Kosten!$B$2","v":0},{"$f":"SUM(P135:Q135)*Kosten!$B$3","v":0},{"$f":"IF(R135=1,Kosten!$B$4,0)","v":0},null,0]
[null,null,null,null,null,null,null,null,null,null,null,null,null,null,null,null,null,null,null,{"$f":"IF(J136,Kosten!$B$1,0)","v":0},{"$f":"IF(K136,Kosten!$B$1,0)","v":0},{"$f":"SUM(N136:O136)*Kosten!$B$2","v":0},{"$f":"SUM(P136:Q136)*Kosten!$B$3","v":0},{"$f":"IF(R136=1,Kosten!$B$4,0)","v":0},null,0]
[null,null,null,null,null,null,null,null,null,null,null,null,null,null,null,null,null,null,null,{"$f":"IF(J137,Kosten!$B$1,0)","v":0},{"$f":"IF(K137,Kosten!$B$1,0)","v":0},{"$f":"SUM(N137:O137)*Kosten!$B$2","v":0},{"$f":"SUM(P137:Q137)*Kosten!$B$3","v":0},{"$f":"IF(R137=1,Kosten!$B$4,0)","v":0},null,0]
[null,null,null,null,null,null,null,null,null,null,null,null,null,null,null,null,null,null,null,{"$f":"IF(J138,Kosten!$B$1,0)","v":0},{"$f":"IF(K138,Kosten!$B$1,0)","v":0},{"$f":"SUM(N138:O138)*Kosten!$B$2","v":0},{"$f":"SUM(P138:Q138)*Kosten!$B$3","v":0},{"$f":"IF(R138=1,Kosten!$B$4,0)","v":0},null,0]
[null,null,null,null,null,null,null,null,null,null,null,null,null,null,null,null,null,null,null,{"$f":"IF(J139,Kosten!$B$1,0)","v":0},{"$f":"IF(K139,Kosten!$B$1,0)","v":0},{"$f":"SUM(N139:O139)*Kosten!$B$2","v":0},{"$f":"SUM(P139:Q139)*Kosten!$B$3","v":0},{"$f":"IF(R139=1,Kosten!$B$4,0)","v":0},null,{"$f":"SUM(T139:Y139)","v":0}]
[null,null,null,null,null,null,null,null,null,null,null,null,null,null,null,null,null,null,null,{"$f":"IF(J140,Kosten!$B$1,0)","v":0},{"$f":"IF(K140,Kosten!$B$1,0)","v":0},{"$f":"SUM(N140:O140)*Kosten!$B$2","v":0},{"$f":"SUM(P140:Q140)*Kosten!$B$3","v":0},{"$f":"IF(R140=1,Kosten!$B$4,0)","v":0},null,0]
[null,null,null,null,null,null,null,null,null,null,null,null,null,null,null,null,null,null,null,{"$f":"IF(J141,Kosten!$B$1,0)","v":0},{"$f":"IF(K141,Kosten!$B$1,0)","v":0},{"$f":"SUM(N141:O141)*Kosten!$B$2","v":0},{"$f":"SUM(P141:Q141)*Kosten!$B$3","v":0},{"$f":"IF(R141=1,Kosten!$B$4,0)","v":0},null,0]
[null,null,null,null,null,null,null,null,null,null,null,null,null,null,null,null,null,null,null,{"$f":"IF(J142,Kosten!$B$1,0)","v":0},{"$f":"IF(K142,Kosten!$B$1,0)","v":0},{"$f":"SUM(N142:O142)*Kosten!$B$2","v":0},{"$f":"SUM(P142:Q142)*Kosten!$B$3","v":0},{"$f":"IF(R142=1,Kosten!$B$4,0)","v":0},null,0]
[null,null,null,null,null,null,null,null,null,null,null,null,null,null,null,null,null,null,null,{"$f":"IF(J143,Kosten!$B$1,0)","v":0},{"$f":"IF(K143,Kosten!$B$1,0)","v":0},{"$f":"SUM(N143:O143)*Kosten!$B$2","v":0},{"$f":"SUM(P143:Q143)*Kosten!$B$3","v":0},{"$f":"IF(R143=1,Kosten!$B$4,0)","v":0},null,0]
[null,null,null,null,null,null,null,null,null,null,null,null,null,null,null,null,null,null,null,{"$f":"IF(J144,Kosten!$B$1,0)","v":0},{"$f":"IF(K144,Kosten!$B$1,0)","v":0},{"$f":"SUM(N144:O144)*Kosten!$B$2","v":0},{"$f":"SUM(P144:Q144)*Kosten!$B$3","v":0},{"$f":"IF(R144=1,Kosten!$B$4,0)","v":0},null,0]
[null,null,null,null,null,null,null,null,null,null,null,null,null,null,null,null,null,null,null,{"$f":"IF(J145,Kosten!$B$1,0)","v":0},{"$f":"IF(K145,Kosten!$B$1,0)","v":0},{"$f":"SUM(N145:O145)*Kosten!$B$2","v":0},{"$f":"SUM(P145:Q145)*Kosten!$B$3","v":0},{"$f":"IF(R145=1,Kosten!$B$4,0)","v":0},null,0]
[null,null,null,null,null,null,null,null,null,null,null,null,null,null,null,null,null,null,null,{"$f":"IF(J146,Kosten!$B$1,0)","v":0},{"$f":"IF(K146,Kosten!$B$1,0)","v":0},{"$f":"SUM(N146:O146)*Kosten!$B$2","v":0},{"$f":"SUM(P146:Q146)*Kosten!$B$3","v":0},{"$f":"IF(R146=1,Kosten!$B$4,0)","v":0},null,0]
[null,null,null,null,null,null,null,null,null,null,null,null,null,null,null,null,null,null,null,{"$f":"IF(J147,Kosten!$B$1,0)","v":0},{"$f":"IF(K147,Kosten!$B$1,0)","v":0},{"$f":"SUM(N147:O147)*Kosten!$B$2","v":0},{"$f":"SUM(P147:Q147)*Kosten!$B$3","v":0},{"$f":"IF(R147=1,Kosten!$B$4,0)","v":0},null,0]
[null,null,null,null,null,null,null,null,null,null,null,null,null,null,null,null,null,null,null,{"$f":"IF(J148,Kosten!$B$1,0)","v":0},{"$f":"IF(K148,Kosten!$B$1,0)","v":0},{"$f":"SUM(N148:O148)*Kosten!$B$2","v":0},{"$f":"SUM(P148:Q148)*Kosten!$B$3","v":0},{"$f":"IF(R148=1,Kosten!$B$4,0)","v":0},null,0]
[null,null,null,null,null,null,null,null,null,null,null,null,null,null,null,null,null,null,null,{"$f":"IF(J149,Kosten!$B$1,0)","v":0},{"$f":"IF(K149,Kosten!$B$1,0)","v":0},{"$f":"SUM(N149:O149)*Kosten!$B$2","v":0},{"$f":"SUM(P149:Q149)*Kosten!$B$3","v":0},{"$f":"IF(R149=1,Kosten!$B$4,0)","v":0},null,0]
[null,null,null,null,null,null,null,null,null,null,null,null,null,null,null,null,null,null,null,{"$f":"IF(J150,Kosten!$B$1,0)","v":0},{"$f":"IF(K150,Kosten!$B$1,0)","v":0},{"$f":"SUM(N150:O150)*Kosten!$B$2","v":0},{"$f":"SUM(P150:Q150)*Kosten!$B$3","v":0},{"$f":"IF(R150=1,Kosten!$B$4,0)","v":0},null,0]

{"sheet":"Kosten","index":1,"n_rows":7,"n_cols":2,"rows_kept":7,"cut":false,"hidden":true,"merged":[[6,4,28,8],[6,0,28,3]]}
["Startgeld",14.5]
["Ontbijt",2.5]
["Lunch",1.75]
["Warme maaltijd",8]
[]
[]
["Bij het openen van het formulier wordt er een kopie gemaakt in de standaard documenten map. Mocht u niet alles in één keer invullen is dat geen probleem, het is te allen tijde mogelijk om hier het bestand weer te openen en aan te passen middels de knop \"invullen\". In het geval van een wijziging is de te wijzigen naam  te selecteren in de box \"Aanwezige leiding en zwemmers\". de gegevens worden dan weer in het formulier getoond, kunnen gewijzigd worden en opgeslagen. Het is ook mogelijk om deze volledig te verwijderen door op de knop \"Verwijderen\" te klikken. Mocht u alles goed ingevuld hebben kunt u hierboven op \"verzenden\" klikken waarna het definitieve bestand (Inschrijving) wordt aangemaakt. dit komt ook weer in de standaard documenten map te staan. Vanaf hier kunt u het gemaakte bestand inzien en mailen naar secretaris@zwemtoernooi.nl. Mocht dit nog niet juist zijn, is op de manier zoals hierboven beschreven nog een aanpassing te doen en het inschrijving bestand opnieuw aan te maken."]

{"sheet":"Voorblad","index":2,"n_rows":10,"n_cols":5,"rows_kept":10,"cut":false,"hidden":false,"merged":[[0,0,1,5],[31,8,33,13],[9,0,9,2],[9,3,27,5]]}
["Hieronder staan de diverse kosten per dag voor het Zechstein internationaal zwemtoernooi."]
[]
["Startgeld",{"$f":"Kosten!B1","v":14.5},null,null,"<--  starten formulier"]
["Ontbijt",{"$f":"Kosten!B2","v":2.5}]
["Lunch",{"$f":"Kosten!B3","v":1.75},null,null,"<--  kopie maken en opslaan voor verzending"]
["Warme maaltijd",{"$f":"Kosten!B4","v":8}]
[]
[]
[]
["Let op dit is een afbeelding!!",null,null,"Door op de knop invullen te klikken wordt het formulie, zoals u hiernaast ziet, geopend. Er wordt nu een kopie gemaakt van het ontvangen bestand \"2016 Insch....\" in de standaard documenten map. Vanuit hier kunt u het bestand ook weer openen indien er nog wijzigingen gedaan moeten worden. Nadat een naam en de benodigde velden zijn ingevuld kunt u op \"Opslaan\" klikken. Als een veld niet is ingevuld, maar wel verplicht, volgt hiervan een melding. Om een wijziging te doen kunt u een naam selecteren in de box \"Aanwezige leiding en zwemmers\". De gegevens worden dan weer in het formulier getoond en kunnen vervolgens gewijzigd en opgeslagen worden. Ook is het mogelijk om deze volledig te verwijderen door op de knop \"Verwijderen\" te klikken. Mocht u alles goed ingevuld hebben kunt u hierboven op \"verzenden\" klikken. Er wordt nu een kopie \"Inschrijving\" gemaakt voor uw eigen administratie en is tevens als controle te gebruiken. Dit komt ook weer in de standaard documenten map te staan. Mocht blijken dat het nog niet juist is kunt u  \"2016 Inschr.....\" openen en het formuler gebruiken om wijzigingen aan te brengen. Als alles goed is bevonden kunt u weer op \"verzenden\" klikken en het bestand \"2016 Inschr.....\" mailen naar  secretariszwemtoernooi@zpcbubble.nl. "]